Cogmind - Beta 13 @@@ ROGUE MODE // 2024.03.31 @ 19:49:28 Player: f_ Result: Destroyed by G-47 Trooper with Particle Gun Performance ------------- Evolutions (3) 1500 Regions Visited (10) 2000 Robots Destroyed (61) 305 Value Destroyed (2335) 2335 Prototype IDs (35) 700 Alien Tech Used (0) 0 Bonus (1035) 1035 TOTAL SCORE: 7875 Bonus ------- Follower Combat Kills 35 Entered Garrisons 200 Used RIF Installer 500 Aligned with FarCom 300 Cogmind --------- Core Integrity 0/700 Matter 300/300 Energy 100/100 System Corruption 4% Temperature Cool (9) Movement Rolling (180) Ox6 Location -7/Lower Caves Parts ------- > --- POWER (1) -------- (None) > --- PROPULSION (2) --- Armored Wheel > --- UTILITY (8) ------ Huge Storage Unit Improved Signal Interpreter Advanced Melee Analysis Suite System Shield Relay Coupler [Grunt] (14) Relay Coupler [Sentry] (19) > --- WEAPON (2) ------- Makeshift Hammer > --- INVENTORY (25) --- Compact Wheel Armored Wheel Armored Wheel Backup Propulsion III Cesium-ion Thruster Coolant Injector Structural Scanner Trap Scanner Energy Filter Improved Particle Charger Improved Particle Charger Advanced ECM Suite Hardened Medium Armor Plating Improved Recalibrator EM Shotgun Improved Arc Projector Cooled Pulse Rifle Heavy Particle Cannon YOLO Cannon Heavy Assault Rifle Peak State ------------ > --- POWER ------------ Backup Power III > --- PROPULSION ------- Armored Wheel Armored Wheel > --- UTILITY ---------- Huge Storage Unit Improved Signal Interpreter Advanced Melee Analysis Suite Advanced Melee Analysis Suite Hacking Suite System Shield Relay Coupler [Grunt] Relay Coupler [Sentry] > --- WEAPON ----------- Mace Makeshift Hammer > --- INVENTORY -------- Micro Nuclear Core Compact Wheel Armored Wheel Armored Wheel Armored Wheel Backup Propulsion III Cesium-ion Thruster Coolant Injector Structural Scanner Trap Scanner Energy Filter Improved Particle Charger Improved Particle Charger Advanced ECM Suite Hardened Medium Armor Plating Improved Recalibrator EM Shotgun Improved Arc Projector Cooled Pulse Rifle Heavy Particle Cannon YOLO Cannon Heavy Assault Rifle [Rating: 49] Favorites ----------- Power Light Nuclear Core Engine Backup Power III Power Core Light Nuclear Core Propulsion Wheel Wheel Wheel Hover Unit Backup Propulsion III Flight Unit Cesium-ion Thruster Utility Hacking Suite Device Structural Scanner Storage Huge Storage Unit Processor Signal Interpreter Hackware Hacking Suite Protection Hardened Light Armor Plating Weapon Mace Energy Gun Heavy EM Pulse Gun Energy Cannon Cooled Particle Cannon Ballistic Gun Heavy Assault Rifle Launcher Mini Grenade Launcher Special Weapon Remote Datajack Impact Weapon Mace Special Melee Weapon Datajack Build | -11 -10 -10 -9 -9 -9 -8 -8 -8 -7 -7 ------- Run | Yrd Mat Min Mat Min Exi Min Mat Gar Fac Low Slots Evolved 6 | . . . 2 . . . 2 . 2 . Power . | . . . . . . . . . . . Propulsion . | . . . . . . . . . . . Utility 6 | . . . 2 . . . 2 . 2 . Weapon . | . . . . . . . . . . . Parts Attached 97 | 6 5 . 16 . . 2 4 5 54 5 Power 13 | 1 . . 2 . . . . . 9 1 Engine 5 | 1 . . 1 . . . . . 3 . Core 8 | . . . 1 . . . . . 6 1 Reactor . | . . . . . . . . . . . Propulsion 16 | 2 . . 3 . . . . . 10 1 Treads . | . . . . . . . . . . . Leg . | . . . . . . . . . . . Wheel 14 | 2 . . 3 . . . . . 8 1 Hover 1 | . . . . . . . . . 1 . Flight 1 | . . . . . . . . . 1 . Utility 32 | 1 3 . 5 . . 2 3 1 15 2 Device 8 | . . . 2 . . 1 . . 5 . Storage 3 | 1 1 . 1 . . . . . . . Processor 4 | . . . 1 . . . . . 1 2 Hackware 6 | . 1 . . . . . . 1 4 . Protection 11 | . 1 . 1 . . 1 3 . 5 . Artifact . | . . . . . . . . . . . Weapon 36 | 2 2 . 6 . . . 1 4 20 1 Energy Gun 12 | 2 2 . 4 . . . . . 4 . Energy Cannon 6 | . . . . . . . 1 1 4 . Ballistic Gun 2 | . . . 1 . . . . . 1 . Ballistic Cannon . | . . . . . . . . . . . Launcher 1 | . . . . . . . . 1 . . Special Weapon 1 | . . . . . . . . . 1 . Impact Weapon 8 | . . . 1 . . . . 1 5 1 Slashing Weapon . | . . . . . . . . . . . Piercing Weapon . | . . . . . . . . . . . Special Melee Weapon 6 | . . . . . . . . 1 5 . Unidentified Prototypes 5 | . . . 1 . . . . . 4 . Parts Lost 35 | . . . 6 . . . . 1 21 7 Power 5 | . . . . . . . . . 3 2 Propulsion 12 | . . . 3 . . . . . 7 2 Utility 11 | . . . . . . . . . 9 2 Weapon 7 | . . . 3 . . . . 1 2 1 Highest Loss Streak 8 | . . . 4 . . . . 1 8 3 To Critical Strikes . | . . . . . . . . . . . Average Slot Usage (%) 95 | . 99 100 94 100 100 100 100 96 92 96 Engine 2 | . 14 14 10 . . . . . 1 3 Core 5 | . . . . 11 11 11 9 9 5 3 Wheel 16 | . 28 28 19 22 22 22 18 18 11 14 Device 7 | . . . 11 11 11 . . . 9 8 Storage 8 | . 14 14 11 11 11 11 9 9 7 7 Processor 8 | . . . 3 11 11 11 9 9 7 13 Hackware 18 | . 8 14 11 11 11 11 9 11 22 29 Protection 8 | . 4 . 7 . . 10 27 24 8 . Energy Gun 4 | . 28 28 18 . . . . . 1 3 Energy Cannon 2 | . . . . . . . 4 3 5 . Ballistic Gun 2 | . . . . 11 11 11 9 1 . . Impact Weapon 4 | . . . . 11 11 11 4 3 2 9 Special Melee Weapon 1 | . . . . . . . . 2 2 . Naked Turns . | . . . . . . . . . . . Heaviest Build 111 | 13 31 31 99 91 91 91 102 111 106 92 Greatest Support 26 | 20 20 20 26 26 26 26 26 26 26 24 Greatest Overweight (x) 31 | . 1 1 9 3 3 3 3 4 31 7 Average Overweight (x) 3 | . . 1 4 3 3 3 3 3 4 3 Largest Inventory Capacity 25 | 8 15 15 25 25 25 25 25 25 25 25 Average Capacity 24 | 7 9 15 24 25 25 25 25 25 25 25 Most Carried 24 | 4 8 8 11 12 13 18 17 21 22 24 Average Carried 16 | 1 6 8 7 9 11 17 16 18 18 21 Final Capacity 25 | 8 15 15 25 25 25 25 25 25 25 25 Final Carried 21 | 1 8 8 8 11 13 18 17 20 17 21 Class Distribution -------------------- 56% | Scavenger-Mutant 24% | Mutant 9% | Hacker-Mutant 4% | Hacker-Gladiator 3% | Hacker-Assassin Dominant Class ---------------- Mutant | -10/Materials Mutant | -10/Mines Mutant | -9/Materials Scavenger-Mutant | -9/Mines Scavenger-Mutant | -9/Exiles Scavenger-Mutant | -8/Mines Scavenger-Mutant | -8/Materials Scavenger-Mutant | -8/Garrison Scavenger-Mutant | -7/Factory Hacker-Mutant | -7/Lower Caves Resources | -11 -10 -10 -9 -9 -9 -8 -8 -8 -7 -7 ----------- Run | Yrd Mat Min Mat Min Exi Min Mat Gar Fac Low Matter Collected 1247 | 94 90 36 210 20 . 26 . 1 553 217 Remotely . | . . . . . . . . . . . Salvage Created 2324 | . 172 50 403 . . . 102 102 1239 256 Parts 118 | . 16 6 23 . . . 5 9 53 6 Haulers Intercepted 1 | . 1 . . . . . . . . . Recyclers Shooed 2 | . . . 1 . . . . . 1 . Parts Field Recycled . | . . . . . . . . . . . Retrieved Matter . | . . . . . . . . . . . Parts Self-Destructed 1 | . . . . . . . . . . 1 Prevented 3 | . . . . . . . . . . 3 Kills | -11 -10 -10 -9 -9 -9 -8 -8 -8 -7 -7 ------- Run | Yrd Mat Min Mat Min Exi Min Mat Gar Fac Low Combat Hostiles Destroyed 50 | . 3 4 5 . . . 2 6 25 5 Melee 6 | . . . . . . . . . 4 2 Guns 13 | . 3 3 5 . . . . . 2 . Cannons 20 | . . . . . . . 2 2 16 . AOE 5 | . . 1 . . . . . 4 . . Classes Destroyed 13 | . 5 . 3 . . . . . 4 1 Worker 1 | . . . . . . . . . 1 . Builder 2 | . 1 . 1 . . . . . . . Hauler 1 | . 1 . . . . . . . . . Recycler 2 | . . . 1 . . . . . 1 . Operator 2 | . 1 . . . . . . . 1 . Watcher 3 | . . . 2 . . . . . 1 . Swarmer 15 | . 2 4 . . . . . 4 4 1 Grunt 25 | . 1 . 3 . . . 1 2 15 3 Brawler 1 | . . . . . . . . . 1 . Sentry 4 | . . . 2 . . . 1 . 1 . Hunter 1 | . . . . . . . . . 1 . Programmer 3 | . . . . . . . . . 3 . Behemoth 1 | . . . . . . . . . . 1 Best Kill Streak 5 | . 3 2 2 . . . 1 4 5 3 Combat Bots Only 4 | . 2 2 2 . . . 1 4 4 3 Max Kills in Single Turn 3 | . 1 2 1 . . . 1 3 1 1 Gunslinging 1 | . . 1 . . . . . . . . Exploded 3 | . . 1 . . . . . 3 . . Melee 1 | . . . . . . . . . 1 1 Uniques/NPCs Destroyed . | . . . . . . . . . . . Combat | -11 -10 -10 -9 -9 -9 -8 -8 -8 -7 -7 -------- Run | Yrd Mat Min Mat Min Exi Min Mat Gar Fac Low Hostile Shots Fired 345 | . 10 18 23 . . . 11 15 197 71 Missed 93 | . . 3 5 . . . 1 3 60 21 Damage Taken 4324 | . 82 131 422 . . . 147 183 2488 871 Core 980 | . 29 53 96 . . . 66 29 404 303 Absorbed by Shields . | . . . . . . . . . . . Redirected to Shielding 115 | . . . . . . . 7 21 87 . Regen/Repaired (Parts) 293 | . . . . . . . . . 293 . Core Remaining (%) 81 | 100 . 67 . . . 76 . 82 . . Volleys Fired 139 | . 10 8 21 . . . 3 7 90 . Largest 2 | . 2 2 2 . . . 2 1 2 . Hottest 100 | . 90 90 90 . . . 98 100 98 . Shots Fired 180 | . 20 16 32 . . . 6 7 99 . Gun 97 | . 20 16 32 . . . 3 . 26 . Cannon 77 | . . . . . . . 3 3 71 . Launcher 4 | . . . . . . . . 4 . . Special 2 | . . . . . . . . . 2 . Kinetic 11 | . . . . . . . 3 . 8 . Thermal 92 | . . . . . . . 3 3 86 . Explosive 4 | . . . . . . . . 4 . . Electromagnetic 71 | . 20 16 32 . . . . . 3 . Robot Hit Streak 14 | . 11 2 14 . . . 5 5 8 . Robot Miss Streak 4 | . 2 4 3 . . . 1 1 4 . Penetration Max . | . . . . . . . . . . . Secondary Targets 1 | . . 1 . . . . . . . . Max Gunslinging Chain 1 | . . 1 . . . . . . . . Shots Hit Robots 167 | . 13 6 25 . . . 4 5 100 14 Core Hits 67 | . 6 4 16 . . . 3 6 29 3 Critical Kills 2 | . . . . . . . . . 1 1 Critical Parts Destroyed 5 | . . . . . . . . . 2 3 Critical Strikes 10 | . . . 2 . . . . . 4 4 Burn 1 | . . . . . . . . . 1 . Corrupt 2 | . . . 2 . . . . . . . Smash 7 | . . . . . . . . . 3 4 Melee Attacks 78 | . . . . . . . . 6 49 23 Impact 69 | . . . . . . . . 5 41 23 Slashing . | . . . . . . . . . . . Piercing . | . . . . . . . . . . . Sneak Attacks 8 | . . . . . . . . . 8 . Combat Hostiles . | . . . . . . . . . . . Follow-up Attacks 1 | . . . . . . . . . . 1 Damage Inflicted 5478 | . 213 180 564 . . . 89 609 3168 655 Guns 1264 | . 213 90 420 . . . 14 . 527 . Cannons 2111 | . . . . . . . 75 249 1787 . Explosions 594 | . . 90 144 . . . . 360 . . Melee 1509 | . . . . . . . . . 854 655 Ramming . | . . . . . . . . . . . Kinetic 112 | . . . . . . . 14 . 98 . Thermal 2796 | . . 90 144 . . . 75 321 2166 . Explosive 288 | . . . . . . . . 288 . . Electromagnetic 773 | . 213 90 420 . . . . . 50 . Impact 1509 | . . . . . . . . . 854 655 Slashing . | . . . . . . . . . . . Piercing . | . . . . . . . . . . . Highest Corruption 4 | . . . 1 1 1 1 . . 4 4 Average Corruption 2 | . . . 1 1 1 1 . . 2 4 Corruption Purged . | . . . . . . . . . . . Corruption Blocked . | . . . . . . . . . . . Effects 74 | . . . . 2 1 . . . 50 21 Message Errors 17 | . . . . 1 1 . . . 12 3 Matter Fused 16 | . . . . 1 . . . . 11 4 Heat Flow Errors 15 | . . . . . . . . . 9 6 Energy Discharges 8 | . . . . . . . . . 6 2 Parts Rejected 2 | . . . . . . . . . 2 . Data Loss (minor) 7 | . . . . . . . . . 5 2 Data Loss (major) 8 | . . . . . . . . . 4 4 Misfires 1 | . . . . . . . . . 1 . Overload Shots 43 | . . . . . . . . . 43 . Overflow Damage 665 | . . . 49 . . . . 37 391 188 Projectiles 78 | . . . . . . . . . 78 . Explosions 291 | . . . 49 . . . . 37 205 . Melee 296 | . . . . . . . . . 108 188 Knockbacks 8 | . . . . . . . . . 1 7 Impact 6 | . . . . . . . . . 1 5 Kinetic . | . . . . . . . . . . . Secondary 2 | . . . . . . . . . . 2 Self-Inflicted Damage 475 | . . 17 86 . . . . 13 359 . Shots 8 | . . 1 2 . . . . 1 4 . Rammed . | . . . . . . . . . . . Targets Rammed . | . . . . . . . . . . . Kicked . | . . . . . . . . . . . Crushed . | . . . . . . . . . . . Highest Temperature 265 | . 120 102 93 . . . 114 57 265 243 Average Temperature 72 | . 48 46 36 . . . 48 23 91 103 Received Heat Transfer 1350 | . 18 . 123 . . . 90 90 765 264 Siege Activations . | . . . . . . . . . . . Robots Corrupted . | . . . . . . . . . . . Combat Hostiles . | . . . . . . . . . . . Parts Fried 8 | . . 1 3 . . . . . 1 3 Impact Corruptions 11 | . . . . . . . . . 5 6 Robots Melted 1 | . . . . . . . . . 1 . Combat Hostiles 1 | . . . . . . . . . 1 . Parts Melted 5 | . . . . . . . . 1 4 . Heat Transferred 3161 | . . 100 250 . . . 111 240 2460 . Parts Sabotaged . | . . . . . . . . . . . Parts Stolen . | . . . . . . . . . . . Parts Stripped . | . . . . . . . . . . . Power Chain Reactions 5 | . . 2 3 . . . . . . . Alert | -11 -10 -10 -9 -9 -9 -8 -8 -8 -7 -7 ------- Run | Yrd Mat Min Mat Min Exi Min Mat Gar Fac Low Peak Influence 341 | . 183 222 229 31 . . 139 330 341 . Initial 172 | . . 70 86 31 . . . 90 172 . Average 125 | . 86 144 116 31 . . 60 227 133 . Maximum Alert Level 1 | . . 1 1 . . . . 1 1 . Low Security (%) 70 | 100 100 67 90 100 . 100 100 31 65 . Level 1 29 | . . 32 9 . . . . 68 34 . Level 2 . | . . . . . . . . . . . Level 3 . | . . . . . . . . . . . Level 4 . | . . . . . . . . . . . Level 5 . | . . . . . . . . . . . High Security . | . . . . . . . . . . . Max Security . | . . . . . . . . . . . Squads Dispatched 8 | . . . . . . . 1 . 7 . Investigation 2 | . . . . . . . . . 2 . Extermination 2 | . . . . . . . . . 2 . Reinforcement 3 | . . . . . . . 1 . 2 . Assault 1 | . . . . . . . . . 1 . Garrison . | . . . . . . . . . . . Intercept . | . . . . . . . . . . . Searches Triggered . | . . . . . . . . . . . Construction Impeded . | . . . . . . . . . . . Haulers Reinforced 1 | . . . . . . . . . 1 . Active Scanning Responses . | . . . . . . . . . . . Cargo Convoy Interrupts . | . . . . . . . . . . . Stealth | -11 -10 -10 -9 -9 -9 -8 -8 -8 -7 -7 --------- Run | Yrd Mat Min Mat Min Exi Min Mat Gar Fac Low Distress Signals 2 | . . . . . . . 1 . 1 . Communications Jammed . | . . . . . . . . . . . Distress Signals . | . . . . . . . . . . . Times Spotted 88 | . 6 6 11 . . . 5 8 36 16 Peak Tracking Total 7 | . 3 3 3 . . . 4 4 4 7 Tactical Retreats 11 | . 1 1 1 . . . 2 1 . 5 Traps | -11 -10 -10 -9 -9 -9 -8 -8 -8 -7 -7 ------- Run | Yrd Mat Min Mat Min Exi Min Mat Gar Fac Low Traps Triggered 7 | . . . 1 . . . . 5 1 . Indirectly . | . . . . . . . . . . . Trap Hack Attempts . | . . . . . . . . . . . Triggered . | . . . . . . . . . . . Disarmed 3 | . 3 . . . . . . . . . Reprogrammed . | . . . . . . . . . . . Reused . | . . . . . . . . . . . Traps Extracted . | . . . . . . . . . . . Installed . | . . . . . . . . . . . Triggered . | . . . . . . . . . . . Machines | -11 -10 -10 -9 -9 -9 -8 -8 -8 -7 -7 ---------- Run | Yrd Mat Min Mat Min Exi Min Mat Gar Fac Low Machines Disabled 11 | . 1 2 . . . . . 1 7 . Max in Single Turn 5 | . 1 1 . . . . . 1 5 . Garrison Access 1 | . . . . . . . . . 1 . Garrison Relay 1 | . . . . . . . . 1 . . Machines Repaired . | . . . . . . . . . . . Machines Dismantled . | . . . . . . . . . . . Machines Sabotaged . | . . . . . . . . . . . Overloaded Fab Kills . | . . . . . . . . . . . Hacking | -11 -10 -10 -9 -9 -9 -8 -8 -8 -7 -7 --------- Run | Yrd Mat Min Mat Min Exi Min Mat Gar Fac Low Machines Accessed 24 | . 5 1 4 . 2 . 2 . 9 1 Terminals 15 | . 5 1 2 . . . 1 . 6 . Fabricators 1 | . . . . . . . . . 1 . Repair Stations 1 | . . . 1 . . . . . . . Recycling Units 2 | . . . 1 . . . . . 1 . Scanalyzers . | . . . . . . . . . . . Garrison Access 2 | . . . . . . . 1 . 1 . Total Hacks 54 | . 12 3 10 . 2 . 2 . 24 1 Successful 31 | . 7 1 7 . 2 . 2 . 11 1 Failed 23 | . 5 2 3 . . . . . 13 . Catastrophic 4 | . 1 1 1 . . . . . 1 . Database Lockouts . | . . . . . . . . . . . Manual 34 | . 11 3 6 . 1 . 1 . 12 . Terminals 39 | . 12 3 6 . . . 1 . 17 . Fabricators 4 | . . . . . . . . . 4 . Repair Stations 2 | . . . 2 . . . . . . . Recycling Units 3 | . . . 2 . . . . . 1 . Scanalyzers . | . . . . . . . . . . . Garrison Access 3 | . . . . . . . 1 . 2 . Terminal Hacks 17 | . 6 1 2 . 2 . . . 5 1 Record 2 | . . . . . 1 . . . 1 . Part Schematic 1 | . . . . . . . . . 1 . Prototype ID Bank 4 | . 3 . 1 . . . . . . . Open Door 1 | . . . . . . . . . . 1 Open DSF 1 | . . . . . . . . . 1 . Level Access Points 1 | . . 1 . . . . . . . . Branch Access Points 1 | . 1 . . . . . . . . . Terminal Index 1 | . . . . . . . . . 1 . Alert Level 2 | . . . 1 . . . . . 1 . Disarm Traps 1 | . 1 . . . . . . . . . Registered Components 1 | . 1 . . . . . . . . . Derelict Proto ID Bank 1 | . . . . . 1 . . . . . Fabricator Hacks 2 | . . . . . . . . . 2 . Load Schematic 1 | . . . . . . . . . 1 . Build 1 | . . . . . . . . . 1 . Repair Station Hacks 2 | . . . 2 . . . . . . . Scan Component 1 | . . . 1 . . . . . . . Repair 1 | . . . 1 . . . . . . . Recycling Unit Hacks 2 | . . . 1 . . . . . 1 . Report Inventory 2 | . . . 1 . . . . . 1 . Scanalyzer . | . . . . . . . . . . . Garrison Access Hacks 2 | . . . . . . . 1 . 1 . Unlock Access 1 | . . . . . . . 1 . . . Coupler Status 1 | . . . . . . . . . 1 . Unauthorized Hacks 6 | . 1 . 2 . . . 1 . 2 . Terminals 4 | . 1 . 1 . . . 1 . 1 . Assimilate 1 | . . . . . . . 1 . . . Botnet 3 | . 1 . 1 . . . . . 1 . Fabricators . | . . . . . . . . . . . Repair Stations . | . . . . . . . . . . . Recycling Units 1 | . . . 1 . . . . . . . Monitor 1 | . . . 1 . . . . . . . Scanalyzers . | . . . . . . . . . . . Garrison Access 1 | . . . . . . . . . 1 . Reprogram 1 | . . . . . . . . . 1 . Data Cores Recovered 1 | . 1 . . . . . . . . . Used 1 | . 1 . . . . . . . . . Hacking Detections 17 | . 5 1 3 . . . 1 . 7 . Full Trace Events 3 | . 1 . . . . . . . 2 . Feedback Events . | . . . . . . . . . . . Feedback Blocked . | . . . . . . . . . . . Robot Schematics Acquired . | . . . . . . . . . . . Robots Built . | . . . . . . . . . . . Authchips . | . . . . . . . . . . . Time . | . . . . . . . . . . . Total Robot Build Rating . | . . . . . . . . . . . Part Schematics Acquired 1 | . . . . . . . . . 1 . Parts Built 1 | . . . . . . . . . 1 . Authchips . | . . . . . . . . . . . Time 53 | . . . . . . . . . 53 . Total Part Build Rating 6 | . . . . . . . . . 6 . Parts Repaired . | . . . . . . . . . . . Time 32 | . . . 32 . . . . . . . Parts Recycled . | . . . . . . . . . . . Recycled Matter . | . . . . . . . . . . . Retrieved Matter . | . . . . . . . . . . . Retrieved Components . | . . . . . . . . . . . Parts Scanalyzed . | . . . . . . . . . . . Part Schematics Acquired . | . . . . . . . . . . . Parts Damaged . | . . . . . . . . . . . Bothacking | -11 -10 -10 -9 -9 -9 -8 -8 -8 -7 -7 ------------ Run | Yrd Mat Min Mat Min Exi Min Mat Gar Fac Low Used RIF Installer 1 | . . . . . . . . 1 . . Robots Hacked 5 | . . . . . . . . 1 4 . Non-combat 4 | . . . . . . . . . 4 . Combat 1 | . . . . . . . . 1 . . Robot Hacks Applied 8 | . . . . . . . . 1 7 . no_distress 2 | . . . . . . . . . 2 . find_station 1 | . . . . . . . . . 1 . streamctrl_low 1 | . . . . . . . . . 1 . formatsys_low 3 | . . . . . . . . . 3 . formatsys_high 1 | . . . . . . . . 1 . . Relay Couplers Released 5 | . . . . . . . . 5 . . Machine Destruction 5 | . . . . . . . . 5 . . Attached 3 | . . . . . . . . 1 2 . Fabnet Peak Effective % . | . . . . . . . . . . . Robots Rewired . | . . . . . . . . . . . Allies Hacked . | . . . . . . . . . . . Hacks Repelled . | . . . . . . . . . . . Allies | -11 -10 -10 -9 -9 -9 -8 -8 -8 -7 -7 -------- Run | Yrd Mat Min Mat Min Exi Min Mat Gar Fac Low Total Allies 6 | . . . . 2 . . . 1 3 . Largest Group 2 | . . . . 2 2 . . 1 2 . Highest-Rated Group 46 | . . . . 46 46 . . 29 29 . Highest-Rated Ally 31 | . . . . 31 31 . . 29 29 . Total Orders 10 | . . . . . . . . . 10 . FOLLOW 3 | . . . . . . . . . 3 . AID 6 | . . . . . . . . . 6 . DROP 1 | . . . . . . . . . 1 . Ally Attacks 4 | . . . . . . . . . 4 . Total Damage 75 | . . . . . . . . . 75 . Kills 1 | . . . . . . . . . 1 . Allies Corrupted . | . . . . . . . . . . . Allies Melted 1 | . . . . . . . . . 1 . Intel | -11 -10 -10 -9 -9 -9 -8 -8 -8 -7 -7 ------- Run | Yrd Mat Min Mat Min Exi Min Mat Gar Fac Low Robot Analysis Total . | . . . . . . . . . . . Derelict Logs Recovered 2 | . . . . 1 . . . . . 1 Drone Launches . | . . . . . . . . . . . Drone Recoveries . | . . . . . . . . . . . Exploration | -11 -10 -10 -9 -9 -9 -8 -8 -8 -7 -7 ------------- Run | Yrd Mat Min Mat Min Exi Min Mat Gar Fac Low Turns Passed 6685 | 40 276 101 598 399 295 327 168 843 2686 952 Spaces Moved 3885 | 37 230 79 287 280 210 235 107 547 1255 618 Core 10 | 8 . . . . . . . . 2 . Treads . | . . . . . . . . . . . Legs . | . . . . . . . . . . . Wheels 3873 | 29 230 79 287 280 210 235 107 547 1251 618 Hover 2 | . . . . . . . . . 2 . Flight . | . . . . . . . . . . . Fastest Speed 50 | 50 80 95 95 135 135 135 135 135 135 135 Average Speed 139 | 73 87 95 147 135 135 135 135 135 159 136 Slowest Speed 1600 | 80 95 95 215 135 135 135 135 150 1600 195 Overloaded Moves . | . . . . . . . . . . . Propulsion Burnouts . | . . . . . . . . . . . Robots Hopped 1 | . . . . . . . . . 1 . Cave-ins Triggered . | . . . . . . . . . . . Exploration Rate (%) 39 | 3 46 34 33 72 60 53 17 34 29 55 Regions Visited 10 Branch Regions 5 Pre-discovered Areas 2 | . . . . 1 1 . . . . . Known Exits Taken 8 | . 1 1 1 1 1 1 1 . 1 . Unknown Exits Taken 1 | 1 . . . . . . . . . . Scrap Searched 7 | . . . . 2 . 3 . . . 2 Spaces Dug 10 | . . . . . . . . 3 7 . Terrain Destroyed 160 | . . 9 7 . . . . 70 74 . Melee 7 | . . . . . . . . 3 4 . Projectile 17 | . . . . . . . . 1 16 . AOE 136 | . . 9 7 . . . . 66 54 . Terrain Rammed . | . . . . . . . . . . . Walls Destroyed . | . . . . . . . . . . . Machines Disabled . | . . . . . . . . . . . Actions | -11 -10 -10 -9 -9 -9 -8 -8 -8 -7 -7 --------- Run | Yrd Mat Min Mat Min Exi Min Mat Gar Fac Low Total 4836 | 49 284 88 427 301 221 245 123 627 1763 708 Wait 491 | . 26 2 89 17 11 3 8 17 261 57 Move 3874 | 36 229 78 286 279 209 234 107 546 1252 618 Hop 1 | . . . . . . . . . 1 . Pick Up 81 | 7 10 . 12 4 1 5 1 3 32 6 Fast Attach . | . . . . . . . . . . . Attach 57 | 6 2 . 9 . . 1 2 3 30 4 Detach 10 | . 1 . . . . 1 . 3 3 2 Swap 40 | . 3 . 7 . . 1 2 2 24 1 Drop 19 | . 3 . 3 1 . . . . 12 . Fire 139 | . 10 8 21 . . . 3 7 90 . Melee 75 | . . . . . . . . 6 49 20 Ram . | . . . . . . . . . . . Kick . | . . . . . . . . . . . Crush . | . . . . . . . . . . . Escape Stasis 48 | . . . . . . . . 40 8 . Rewire 1 | . . . . . . . . . 1 . Trap . | . . . . . . . . . . . Miscellaneous . | . . . . . . . . . . . Route ------- -11/Scrapyard -10/Materials (discovered 2 exits: *Mat / *Min) -10/Mines (discovered 2 exits: *Mat x2) -9/Materials (discovered 2 exits: *Min / [*Sto]) -9/Mines (discovered 3 exits: *Mat x2 / *Exi) -9/Exiles -8/Mines -8/Materials -8/Garrison -7/Factory (discovered 3 exits: *Fac x2 / *Low) -7/Lower Caves (discovered 1 exit: Low) History --------- Turn | Location | Event 21 | -11/Scrapyard | Discovered new exit (range 16) 41 | -11/Scrapyard | Entered Materials 167 | -10/Materials | Identified exit to Mines 271 | -10/Materials | Discovered new exit (range 15) 307 | -10/Materials | Build established: Mutant 317 | -10/Materials | Entered Mines 399 | -10/Mines | Identified exit to Materials 418 | -10/Mines | Entered Materials 418 | -9/Materials | Evolved 2 slots: Utility x2 470 | -9/Materials | Discovered new exit (range 15) 750 | -9/Materials | Discovered new exit (range 14) 911 | -9/Materials | Lost 4 parts (2n2w) 1014 | -9/Materials | Identified exit to Mines 1016 | -9/Materials | Entered Mines 1057 | -9/Mines | Met a Derelict bent on vengeance 1070 | -9/Mines | Found a hidden stash of uninstalled traps 1088 | -9/Mines | Learned Materials garrison access intel 1101 | -9/Mines | Build established: Scavenger-Mutant 1150 | -9/Mines | Discovered new exit (range 9) 1160 | -9/Mines | Identified exit to Materials 1374 | -9/Mines | Discovered exit to Materials (range 15) 1382 | -9/Mines | Learned location of Storage (-9) 1393 | -9/Mines | Deemed a non-threat by the Exiles lab entrance 1394 | -9/Mines | Discovered new exit (range 5) 1398 | -9/Mines | Identified exit to Exiles 1415 | -9/Mines | Entered Exiles 1415 | -9/Exiles | Accompanied by 2 allies 1445 | -9/Exiles | Led the pair of lost Derelicts to a safe place 1448 | -9/Exiles | Met 8R-AWN 1471 | -9/Exiles | Met EX-HEX 1513 | -9/Exiles | Met EX-BIN 1528 | -9/Exiles | Aligned with FarCom system 1529 | -9/Exiles | Given EX-Vault access code 1560 | -9/Exiles | Opened EX-Vault 1569 | -9/Exiles | Found YOLO Cannon 1599 | -9/Exiles | Warned to stay clear of 0b10 Research branches 1637 | -9/Exiles | Met EX-DEC 1645 | -9/Exiles | Learned location of Zion (-6) 1682 | -9/Exiles | Discovered new exit (range 14) 1697 | -9/Exiles | Identified exit to Mines 1710 | -9/Exiles | Left Exiles lab with YOLO Cannon 1710 | -9/Exiles | Entered Mines 2025 | -8/Mines | Discovered exit to Materials (range 8) 2037 | -8/Mines | Entered Materials 2037 | -8/Materials | Evolved 2 slots: Utility x2 2038 | -8/Materials | Loaded intel: 1 garrison access location 2205 | -8/Materials | Identified exit to Garrison 2205 | -8/Materials | Entered Garrison 2260 | -8/Garrison | Triggered checkpoint 2440 | -8/Garrison | Triggered checkpoint 2473 | -8/Garrison | Garrison Relay disabled 2592 | -8/Garrison | Discovered new exit (range 8) 2600 | -8/Garrison | Identified exit to Factory 2842 | -8/Garrison | Installed Relay Interface Framework 3048 | -8/Garrison | Entered Factory 3048 | -7/Factory | Accompanied by 1 ally 3048 | -7/Factory | Evolved 2 slots: Utility x2 3356 | -7/Factory | Build established: Mutant 3448 | -7/Factory | Discovered new exit (range 14) 3483 | -7/Factory | Identified exit to Factory 3610 | -7/Factory | Lost 5 parts (1p2n2u) 3993 | -7/Factory | Build established: Scavenger-Mutant 4232 | -7/Factory | P-60 Hacker assimilated allied Smith 4b 4533 | -7/Factory | Lost 4 parts (2n2u) 5285 | -7/Factory | Core integrity fell below 50% 5337 | -7/Factory | Lost 8 parts (2p1n3u2w) 5393 | -7/Factory | Fabricated Imp. Arc Projector (x1) 5483 | -7/Factory | Discovered exit to Factory (range 15) 5544 | -7/Factory | Discovered new exit (range 4) 5548 | -7/Factory | Identified exit to Lower Caves 5734 | -7/Factory | Entered Lower Caves 6031 | -7/Lower Caves | Build established: Hacker-Mutant 6343 | -7/Lower Caves | Spotted B-75 Beast 6529 | -7/Lower Caves | Core integrity fell below 20% 6536 | -7/Lower Caves | Destroyed B-75 Beast 6562 | -7/Lower Caves | Lost 3 parts (1n1u1w) 6663 | -7/Lower Caves | Identified exit to Lower Caves 6682 | -7/Lower Caves | Attracted the attention of an 0b10 base 6686 | -7/Lower Caves | Destroyed by G-47 Trooper with Particle Gun Last Messages --------------- 06564_ :LPZB 5MZYO 06663_ Acquired derelict log, extracted data. 06671_ System corrupted: Substantial component data lost. 06674_ Searching scrap... 06674_ Found Mak. ECM Suite. 06674_ Found Mak. Axe. 06674_ Found Adv. Terrain Scan Processor. 06674_ Found Component Analysis Suite. 06674_ Found 23 Matter. 06675_ Acquired 15 matter. 06675_ S-27 Virus springs to life. 06675_ Arm. Wheel destroyed. 06675_ Penetrated by Slug. 06675_ Mic. Nuclear Core destroyed. 06678_ Hacking Suite destroyed. 06679_ S-27 Virus destroyed. 06682_ Machine disabled. Map ----- +----------------------------------------------------+ | ?????????????????????????????????????????????????? | | ?????????????????????????????????????????????????? | | ?????????????????????????????????????????????????? | | ?????????????????????????????????????????????????? | | ?????????????????????????????????????????????????? | | ?????????????????????????????????????????????????? | | ?????????????????????????????????????????????????? | | ?????????????????????????????????????????????????? | | ?????????????????????????????????????????????????? | | ?????????????????????????????????????????????????? | | ?????????????????????????#???????????????????????? | | ????????????????????????? ##?????## ?????????????? | | ????????????????????????? #????# ????????????? | | ????????????????????????? #???# ????????????? | | ????????????????????????? ##?# ???????????? | | ????????????????????????? ## ???????????? | | ????????????????????????? ???????????? | | ????????????????????????? #????????????? | | ??????????????????######?# #????????????? | | ?????????????????## ### ####??????????? | | ?????????????????# # ??????????? | | ??????????????????# ??????????? | | ????????????????### ######+#??????????????? | | ???????????????## ### #? "??????????????? | | ??????????????## #?# #" "??????????????? | | ????????????### ###@s# $ "??????????????? | | ????????????# #!%ggg #???????????? | | ????????????# #### /!#= Y #???????????? | | ????????????# #??## #? #???????????? | | ????????????# ##### #?? #???????????? | | ????????????# ## #???? #???????????? | | ???????????## #?????""""#???????????? | | ???????????# ####+###### ???????? | | ???????????# ### ???????? | | ???????????# ##?## #????????? | | ???????????# #???########### #??????????? | | ???????????## #????????????????????????????? | | ????????????# ##?????????##?????????????????? | | ????????????# ########????? ###???????????????? | | ???????????## ##### ##??? ????######?????? | | ???????????# ## #### ???## ##????? | | ???????????## #?## #???? | | ????????????## #?## ##?? | | ????????????## #?## ## | | ????????????# #???# | | ????????????# #?### ? | | ????????????# ## ###" ???? | | ????????????# ### ### ##" #?????? | | ????????????# #?# ##?? ### #?????? | | ????????????# #?# ### #??# #####??? | +----------------------------------------------------+ Best States ------------- Heat Dissipation 62 Energy Generation 15 Energy Capacity 265 Matter Stores 300 Matter Capacity 300 Sight Range 16 Robot Scan Range 14 Terrain Scan Density 10 Armor Coverage 600 Power Shielding 66 Propulsion Shielding 33 Evasion (%) 44 Melee Accuracy 16 Energy Filtering 30 Offensive Hacking 20 Defensive Hacking 10 Relay Coupler Types 2 Relay Coupler Value 33 Item Schematics ----------------- Imp. Arc Projector | -7/Factory | Hacked Robot Schematics ------------------ None Fabricated ------------ Imp. Arc Projector | x1 | -7/Factory Alien Tech Used ----------------- None Achievements -------------- Overkill Challenges ------------ None Game ------ Seed PiercingServoArachnoskeleton Manual? 0 Play Time 01:07:36 Cumulative 109.0 hours Start 2024.03.31 @ 18:42:48 End 2024.03.31 @ 19:49:28 Sessions 1 Manual Loads 0 Difficulty Rogue Special Mode None Game No. 110 Rogue 107 Adventurer 0 Explorer 3 Win Type - Total 0 Types 0/0/0/0/0/0/0/0/0 Lore% 31 Gallery% 47 Achievement% 34 Wizard Run 0 Options --------- Layout 1 ASCII 0 Keyboard 0 Movement Mouse Keybinds 0 Fullscreen 2 Font 48/Terminus Map View 50x35 Zoom Use 0% Tactical HUD 1 Map Filters NONE Filters NONE Steam 1 RUN: cdeb0de0-3870-4802-adb8-7deb3c50fd2c